Cogmind - Beta 13 @@@ ROGUE MODE // 2024.06.06 @ 12:35:27 Player: Some Pennies Result: Destroyed by Combat Programmer with EMDS Performance ------------- Evolutions (4) 2000 Regions Visited (14) 2800 Robots Destroyed (169) 845 Value Destroyed (4077) 4077 Prototype IDs (217) 4340 Alien Tech Used (0) 0 Bonus (4313) 4313 TOTAL SCORE: 18375 Bonus ------- High Alert Combat Kills 396 Follower Combat Kills 101 Entered Garrisons 200 Met Data Miner 300 Used Data Conduit 3000 Pursued by Intercept 500 Friendly Fire -184 Cogmind --------- Core Integrity 0/850 Matter 189/300 Energy 53/100 System Corruption 6% Temperature Cool (0) Movement Core (400) Ox7 Location -6/Factory Parts ------- > --- POWER (1) -------- (None) > --- PROPULSION (5) --- (None) > --- UTILITY (7) ------ Large Storage Unit Enhanced Optical Array Advanced Signal Interpreter Hacking Suite System Mapper System Shield > --- WEAPON (2) ------- Mini Assault Cannon > --- INVENTORY (15) --- Improved Flight Unit Experimental Sensor Array Advanced Terrain Scan Processor ECM Suite Deep Network Scanner Immobilizer Mini Assault Cannon Improved Grenade Launcher Heavy Missile Launcher Improved Datajack Peak State ------------ > --- POWER ------------ Micro Nuclear Core > --- PROPULSION ------- Improved Flight Unit Improved Cesium-ion Thruster Improved Cesium-ion Thruster Improved Cesium-ion Thruster Improved Cesium-ion Thruster > --- UTILITY ---------- Large Storage Unit Enhanced Optical Array Experimental Sensor Array Advanced Signal Interpreter Hacking Suite System Mapper System Shield > --- WEAPON ----------- Mini Assault Cannon Mini Assault Cannon > --- INVENTORY -------- Improved Flight Unit Improved Flight Unit Advanced Terrain Scan Processor ECM Suite Improved Light Armor Plating Improved Light Armor Plating Deep Network Scanner Cooled Particle Cannon Improved Grenade Launcher Heavy Missile Launcher Improved Datajack Ripper [Rating: 76] Favorites ----------- Power Ion Engine Engine Ion Engine Power Core Micro Nuclear Core Propulsion Light Treads Treads Light Treads Wheel Wheel Hover Unit Aerolev Unit Flight Unit Improved Cesium-ion Thruster Utility Hacking Suite Device Seismic Detector Storage Medium Storage Unit Processor Improved Signal Interpreter Hackware Hacking Suite Protection Improved Light Armor Plating Weapon Light Cannon Energy Gun Immobilizer Energy Cannon Heavy Particle Cannon Ballistic Gun Assault Rifle Ballistic Cannon Light Cannon Launcher Advanced EMP Blaster Slashing Weapon Ripper Special Melee Weapon Datajack Build | -11 -10 -10 -10 -9 -8 -8 -7 -7 -7 -7 -6 -6 -6 -6 ------- Run | Yrd Mat Min Exi Min Mat Gar Fac Low Low Dat Pro Fac Was Fac Slots Evolved 8 | . . . . . 4 . 2 . . . . 2 . . Power . | . . . . . . . . . . . . . . . Propulsion 3 | . . . . . 2 . 1 . . . . . . . Utility 5 | . . . . . 2 . 1 . . . . 2 . . Weapon . | . . . . . . . . . . . . . . . Parts Attached 202 | 7 12 7 1 . 63 5 37 3 . 2 4 1 . 60 Power 11 | 1 1 . . . 6 . 1 . . . . 1 . 1 Engine 5 | 1 1 . . . 3 . . . . . . . . . Core 6 | . . . . . 3 . 1 . . . . 1 . 1 Reactor . | . . . . . . . . . . . . . . . Propulsion 46 | 2 6 . . . 18 . 15 . . 1 . . . 4 Treads 14 | 1 5 . . . 8 . . . . . . . . . Leg . | . . . . . . . . . . . . . . . Wheel 2 | 1 1 . . . . . . . . . . . . . Hover 14 | . . . . . 6 . 8 . . . . . . . Flight 16 | . . . . . 4 . 7 . . 1 . . . 4 Utility 53 | 2 3 4 1 . 10 . 10 2 . 1 1 . . 19 Device 23 | 1 2 2 . . 2 . 6 2 . . 1 . . 7 Storage 5 | 1 1 . 1 . 2 . . . . . . . . . Processor 8 | . . 1 . . 2 . 2 . . . . . . 3 Hackware 5 | . . . . . 3 . . . . . . . . 2 Protection 12 | . . 1 . . 1 . 2 . . 1 . . . 7 Artifact . | . . . . . . . . . . . . . . . Weapon 92 | 2 2 3 . . 29 5 11 1 . . 3 . . 36 Energy Gun 2 | . . . . . 1 . . . . . . . . 1 Energy Cannon 5 | . . . . . 3 . 1 . . . . . . 1 Ballistic Gun 12 | 2 2 . . . 4 2 2 . . . . . . . Ballistic Cannon 31 | . . 2 . . 8 1 3 1 . . . . . 16 Launcher 9 | . . 1 . . 4 . . . . . 2 . . 2 Special Weapon . | . . . . . . . . . . . . . . . Impact Weapon . | . . . . . . . . . . . . . . . Slashing Weapon 23 | . . . . . 4 1 4 . . . 1 . . 13 Piercing Weapon . | . . . . . . . . . . . . . . . Special Melee Weapon 10 | . . . . . 5 1 1 . . . . . . 3 Unidentified Prototypes 12 | . . 1 . . 7 . 3 . . . . . . 1 Parts Lost 30 | . . . . . 13 . 1 . . 2 . . . 14 Power 5 | . . . . . 3 . . . . . . . . 2 Propulsion 13 | . . . . . 5 . . . . 1 . . . 7 Utility 6 | . . . . . 2 . . . . 1 . . . 3 Weapon 6 | . . . . . 3 . 1 . . . . . . 2 Highest Loss Streak 10 | . . . . . 8 . 1 . . 2 . . . 10 To Critical Strikes . | . . . . . . . . . . . . . . . Average Slot Usage (%) 95 | . 100 99 100 100 94 100 95 92 92 92 86 73 73 89 Engine 6 | . 14 14 14 14 4 . . . . . . . . . Core 3 | . . . . . 3 9 7 7 7 7 7 6 6 5 Treads 14 | . 26 28 28 28 18 . . . . . . . . . Hover 8 | . . . . . 13 36 21 . . . . . . . Flight 8 | . . . . . . . 15 38 38 38 38 33 33 31 Device 5 | . 14 4 . . 2 . 6 7 7 4 1 . . 2 Storage 9 | . 14 14 14 14 9 9 7 7 7 7 7 6 6 6 Processor 6 | . . 6 14 14 7 . 7 7 7 7 7 6 6 12 Hackware 9 | . . . . . 10 27 15 15 15 15 15 13 13 19 Protection 1 | . . 2 . . 4 . . . . 2 . . . 1 Ballistic Gun 6 | . 28 5 . . 2 7 1 . . . . . . . Ballistic Cannon 8 | . . 22 28 28 10 9 . . . . . . . 2 Slashing Weapon 2 | . . . . . 2 . 5 7 7 7 7 6 6 2 Special Melee Weapon 1 | . . . . . 1 1 1 . . . . . . 2 Naked Turns . | . . . . . . . . . . . . . . . Heaviest Build 38 | 13 19 24 21 21 38 32 37 31 30 30 35 29 29 37 Greatest Support 80 | 10 40 40 40 40 80 32 41 30 30 30 29 29 29 30 Greatest Overweight (x) 10 | 1 1 . . . 2 . 5 1 . . 1 . . 10 Average Overweight (x) . | . . . . . . . . . . . . . . . Largest Inventory Capacity 15 | 8 10 10 10 10 15 15 15 15 15 15 15 15 15 15 Average Capacity 12 | 7 9 10 10 10 11 15 15 15 15 15 15 15 15 15 Most Carried 15 | 6 10 10 10 10 15 15 15 15 15 15 15 15 14 15 Average Carried 11 | 3 9 9 10 10 10 15 14 14 15 14 13 14 14 13 Final Capacity 15 | 8 10 10 10 10 15 15 15 15 15 15 15 15 15 15 Final Carried 15 | 6 10 10 10 10 15 15 15 15 15 14 15 14 14 10 Class Distribution -------------------- 34% | Mutant 27% | Scavenger-Mutant 19% | Hacker-Sprinter 18% | Hacker-Mutant Dominant Class ---------------- Scavenger-Mutant | -10/Materials Mutant | -10/Mines Mutant | -10/Exiles Mutant | -9/Mines Scavenger-Mutant | -8/Materials Hacker-Mutant | -8/Garrison Hacker-Mutant | -7/Factory Hacker-Sprinter | -7/Lower Caves Hacker-Sprinter | -7/Lower Caves Hacker-Sprinter | -7/Data Miner Hacker-Sprinter | -6/Proximity Caves Hacker-Sprinter | -6/Factory Hacker-Sprinter | -6/Waste Hacker-Sprinter | -6/Factory Resources | -11 -10 -10 -10 -9 -8 -8 -7 -7 -7 -7 -6 -6 -6 -6 ----------- Run | Yrd Mat Min Exi Min Mat Gar Fac Low Low Dat Pro Fac Was Fac Matter Collected 4543 | 366 492 164 . 10 1758 90 623 19 57 . 69 . . 895 Remotely . | . . . . . . . . . . . . . . . Salvage Created 5833 | 218 832 159 . . 2410 60 1158 . 67 27 53 . . 849 Parts 329 | 14 54 4 . . 147 3 53 . 4 4 8 . . 38 Haulers Intercepted 14 | . 2 . . . 5 . 6 . . . . . . 1 Recyclers Shooed 8 | . 3 . . . 4 . 1 . . . . . . . Parts Field Recycled . | . . . . . . . . . . . . . . . Retrieved Matter . | . . . . . . . . . . . . . . . Parts Self-Destructed 9 | . . . . . . . . . 2 . 7 . . . Prevented 3 | . . . . . . . . . 3 . . . . . Kills | -11 -10 -10 -10 -9 -8 -8 -7 -7 -7 -7 -6 -6 -6 -6 ------- Run | Yrd Mat Min Exi Min Mat Gar Fac Low Low Dat Pro Fac Was Fac Combat Hostiles Destroyed 97 | . 16 7 . 1 47 2 5 . 1 . 4 . . 14 Melee 8 | . . . . . 5 . 2 . 1 . . . . . Guns 21 | . 16 . . . 3 2 . . . . . . . . Cannons 47 | . . 2 . 1 33 . 3 . . . . . . 8 AOE 21 | . . 5 . . 6 . . . . . 4 . . 6 Classes Destroyed 19 | 3 5 1 . . 7 1 1 . . . . . . 1 Worker 14 | 1 . . . . 5 . 7 . . . . . . 1 Builder 3 | . . . . . 2 . 1 . . . . . . . Tunneler 8 | 5 . . . . 3 . . . . . . . . . Hauler 14 | . 2 . . . 5 . 6 . . . . . . 1 Recycler 18 | 1 2 1 . . 9 . 4 . . . . . . 1 Mechanic 2 | . . . . . 1 . . . . . . . . 1 Operator 4 | . 1 . . . 2 . . . . . . . . 1 Watcher 12 | . 3 . . . 4 . 4 . . . . . . 1 Swarmer 24 | . 6 . . 1 11 . 1 . . . 4 . . 1 Cutter 1 | . . . . . . 1 . . . . . . . . Grunt 43 | . 10 2 . . 21 1 1 . 1 . . . . 7 Brawler 4 | . . . . . . . 1 . . . . . . 3 Duelist 3 | . . . . . 2 . 1 . . . . . . . Protector 1 | . . . . . 1 . . . . . . . . . Sentry 12 | . . . . . 10 . 1 . . . . . . 1 Hunter 1 | . . . . . 1 . . . . . . . . . Programmer 2 | . . . . . . . . . . . . . . 2 Heavy 1 | . . . . . 1 . . . . . . . . . Decomposer 1 | . . . . . . . . . 1 . . . . . Assembled 5 | . . 5 . . . . . . . . . . . . Guerrilla 1 | . . . . . . . 1 . . . . . . . Best Kill Streak 10 | 4 5 5 . 1 10 1 6 . 1 1 3 . . 9 Combat Bots Only 7 | . 5 5 . 1 6 1 2 . 1 . 3 . . 7 Max Kills in Single Turn 4 | 2 1 4 . 1 3 1 2 . 1 1 1 . . 3 Gunslinging . | . . . . . . . . . . . . . . . Exploded 4 | . . 4 . . 3 . . . . . 1 . . 2 Melee 1 | . . . . . 1 . 1 . 1 . . . . . Uniques/NPCs Destroyed 1 | . . . . . . . . . . 1 . . . . Data Miner (-7/Data Miner) Combat | -11 -10 -10 -10 -9 -8 -8 -7 -7 -7 -7 -6 -6 -6 -6 -------- Run | Yrd Mat Min Exi Min Mat Gar Fac Low Low Dat Pro Fac Was Fac Hostile Shots Fired 610 | . 81 13 . 8 190 13 47 . . 11 3 . . 244 Missed 201 | . 22 4 . 3 58 2 27 . . 5 2 . . 78 Damage Taken 6594 | . 580 372 . 39 2495 194 234 . . 278 79 . . 2323 Core 1703 | . 114 109 . 15 368 85 38 . . 47 42 . . 885 Absorbed by Shields 90 | . . . . . . . . . . . . . . 90 Regen/Repaired (Parts) 194 | . . . . . 11 . 31 . . . . . . 152 Core Remaining (%) 50 | 100 . . . 4 . 17 . . . . 81 . . . Volleys Fired 324 | 16 72 11 . 6 141 5 26 5 . . 6 . . 36 Largest 2 | 2 2 2 . 2 2 2 2 1 . . 1 . . 2 Hottest 119 | 40 40 70 . 70 119 64 73 48 . . 36 . . 96 Shots Fired 603 | 32 144 22 . 12 264 10 50 5 . . 6 . . 58 Gun 251 | 32 144 2 . . 44 5 24 . . . . . . . Cannon 333 | . . 18 . 12 215 5 26 5 . . . . . 52 Launcher 19 | . . 2 . . 5 . . . . . 6 . . 6 Special . | . . . . . . . . . . . . . . . Kinetic 569 | 32 144 20 . 12 245 10 50 5 . . . . . 51 Thermal 15 | . . . . . 14 . . . . . . . . 1 Explosive 19 | . . 2 . . 5 . . . . . 6 . . 6 Electromagnetic . | . . . . . . . . . . . . . . . Robot Hit Streak 21 | 5 12 11 . 4 21 2 8 . . . 2 . . 8 Robot Miss Streak 9 | 2 5 2 . 3 9 3 6 . . . . . . 3 Penetration Max . | . . . . . . . . . . . . . . . Secondary Targets 1 | . 1 . . . . . . . . . . . . . Max Gunslinging Chain 1 | . 1 . . . . . . . . . . . . . Shots Hit Robots 477 | 20 96 14 . 6 221 5 64 . 2 1 1 . . 47 Core Hits 290 | 8 40 15 . . 151 2 29 . 2 1 10 . . 32 Critical Kills . | . . . . . . . . . . . . . . . Critical Parts Destroyed 2 | . 1 . . . 1 . . . . . . . . . Critical Strikes 19 | . 1 . . . 12 . 3 . . . . . . 3 Destroy 2 | . 1 . . . 1 . . . . . . . . . Blast 9 | . . . . . 7 . 1 . . . . . . 1 Sever 8 | . . . . . 4 . 2 . . . . . . 2 Melee Attacks 148 | . . . . . 45 4 70 1 2 1 1 . . 24 Impact . | . . . . . . . . . . . . . . . Slashing 137 | . . . . . 40 2 70 1 2 1 1 . . 20 Piercing . | . . . . . . . . . . . . . . . Sneak Attacks 41 | . . . . . 14 2 15 . 2 1 . . . 7 Combat Hostiles 1 | . . . . . . . . . 1 . . . . . Follow-up Attacks . | . . . . . . . . . . . . . . . Damage Inflicted 13667 | 257 1199 469 . 94 5932 59 2755 . 141 76 256 . . 2429 Guns 2207 | 257 1199 . . . 448 59 244 . . . . . . . Cannons 4804 | . . 223 . 94 3201 . 406 . . . . . . 880 Explosions 2038 | . . 246 . . 702 . . . . . 256 . . 834 Melee 4618 | . . . . . 1581 . 2105 . 141 76 . . . 715 Ramming . | . . . . . . . . . . . . . . . Kinetic 6711 | 257 1199 223 . 94 3349 59 650 . . . . . . 880 Thermal 300 | . . . . . 300 . . . . . . . . . Explosive 2038 | . . 246 . . 702 . . . . . 256 . . 834 Electromagnetic . | . . . . . . . . . . . . . . . Impact . | . . . . . . . . . . . . . . . Slashing 4618 | . . . . . 1581 . 2105 . 141 76 . . . 715 Piercing . | . . . . . . . . . . . . . . . Highest Corruption 6 | . . . . . . . 1 1 1 1 1 . . 6 Average Corruption 1 | . . . . . . . 1 1 1 1 1 . . 5 Corruption Purged . | . . . . . . . . . . . . . . . Corruption Blocked . | . . . . . . . . . . . . . . . Effects 25 | . . . . . . . 9 5 2 . 1 . . 8 Message Errors 7 | . . . . . . . 2 2 1 . . . . 2 Matter Fused 5 | . . . . . . . 2 1 . . 1 . . 1 Heat Flow Errors 4 | . . . . . . . 2 1 . . . . . 1 Energy Discharges 3 | . . . . . . . 1 . . . . . . 2 Parts Rejected 1 | . . . . . . . . . . . . . . 1 Data Loss (minor) 2 | . . . . . . . . . 1 . . . . 1 Data Loss (major) 2 | . . . . . . . 1 1 . . . . . . Misfires 1 | . . . . . . . 1 . . . . . . . Overload Shots . | . . . . . . . . . . . . . . . Overflow Damage 700 | . . 7 . 17 230 . 287 . . . 34 . . 125 Projectiles 47 | . . . . 17 . . 11 . . . . . . 19 Explosions 68 | . . 7 . . 27 . . . . . 34 . . . Melee 585 | . . . . . 203 . 276 . . . . . . 106 Knockbacks 53 | . . 2 . 2 42 . 2 . . . . . . 5 Impact . | . . . . . . . . . . . . . . . Kinetic 46 | . . 2 . 2 35 . 2 . . . . . . 5 Secondary 7 | . . . . . 7 . . . . . . . . . Self-Inflicted Damage 213 | . . 54 . . 93 . . . . . 66 . . . Shots 8 | . . 2 . . 4 . . . . . 2 . . . Rammed . | . . . . . . . . . . . . . . . Targets Rammed . | . . . . . . . . . . . . . . . Kicked . | . . . . . . . . . . . . . . . Crushed . | . . . . . . . . . . . . . . . Highest Temperature 402 | . 20 54 . 54 233 70 402 199 212 62 69 4 4 229 Average Temperature 64 | . 7 21 . 28 64 24 83 77 83 24 33 2 2 49 Received Heat Transfer 1650 | . 225 57 . . 801 54 39 . . . . . . 474 Siege Activations . | . . . . . . . . . . . . . . . Robots Corrupted . | . . . . . . . . . . . . . . . Combat Hostiles . | . . . . . . . . . . . . . . . Parts Fried . | . . . . . . . . . . . . . . . Impact Corruptions . | . . . . . . . . . . . . . . . Robots Melted . | . . . . . . . . . . . . . . . Combat Hostiles . | . . . . . . . . . . . . . . . Parts Melted . | . . . . . . . . . . . . . . . Heat Transferred 444 | . . . . . 444 . . . . . . . . . Parts Sabotaged . | . . . . . . . . . . . . . . . Parts Stolen . | . . . . . . . . . . . . . . . Parts Stripped . | . . . . . . . . . . . . . . . Power Chain Reactions . | . . . . . . . . . . . . . . . Alert | -11 -10 -10 -10 -9 -8 -8 -7 -7 -7 -7 -6 -6 -6 -6 ------- Run | Yrd Mat Min Exi Min Mat Gar Fac Low Low Dat Pro Fac Was Fac Peak Influence 1006 | 35 360 126 . 65 1006 563 572 . . . . 56 49 507 Initial 431 | . 22 103 . . 25 431 295 . . . . 56 19 34 Average 284 | 15 207 47 . 53 416 477 412 . . . . 56 38 245 Maximum Alert Level 3 | . 1 . . . 3 2 2 . . . . . . 2 Low Security (%) 40 | 100 48 100 . 100 19 . . . . . . 100 100 43 Level 1 31 | . 51 . . . 34 . 43 . . . . . . 43 Level 2 24 | . . . . . 32 100 56 . . . . . . 13 Level 3 4 | . . . . . 13 . . . . . . . . . Level 4 . | . . . . . . . . . . . . . . . Level 5 . | . . . . . . . . . . . . . . . High Security . | . . . . . . . . . . . . . . . Max Security . | . . . . . . . . . . . . . . . Squads Dispatched 32 | . 5 . . . 8 . 12 . . . . . . 7 Investigation 15 | . 4 . . . 3 . 7 . . . . . . 1 Extermination 2 | . . . . . . . 1 . . . . . . 1 Reinforcement 10 | . 1 . . . 3 . 4 . . . . . . 2 Assault 1 | . . . . . 1 . . . . . . . . . Garrison 2 | . . . . . 1 . . . . . . . . 1 Intercept 2 | . . . . . . . . . . . . . . 2 Searches Triggered 1 | . . . . . . . 1 . . . . . . . Construction Impeded . | . . . . . . . . . . . . . . . Haulers Reinforced 5 | . . . . . . . 4 . . . . . . 1 Active Scanning Responses . | . . . . . . . . . . . . . . . Cargo Convoy Interrupts 1 | . . . . . . . 1 . . . . . . . Stealth | -11 -10 -10 -10 -9 -8 -8 -7 -7 -7 -7 -6 -6 -6 -6 --------- Run | Yrd Mat Min Exi Min Mat Gar Fac Low Low Dat Pro Fac Was Fac Distress Signals 7 | . 1 . . . 2 . 2 . . . . . . 2 Communications Jammed . | . . . . . . . . . . . . . . . Distress Signals . | . . . . . . . . . . . . . . . Times Spotted 208 | . 26 9 . 3 68 6 22 2 . 4 6 . 6 56 Peak Tracking Total 7 | . 5 5 . 4 7 2 5 3 . 4 5 . 6 7 Tactical Retreats 27 | . . . . 1 7 . 4 1 . . 2 . . 12 Traps | -11 -10 -10 -10 -9 -8 -8 -7 -7 -7 -7 -6 -6 -6 -6 ------- Run | Yrd Mat Min Exi Min Mat Gar Fac Low Low Dat Pro Fac Was Fac Traps Triggered 12 | . 2 . . . 1 1 3 . . . . 1 . 4 Indirectly . | . . . . . . . . . . . . . . . Trap Hack Attempts . | . . . . . . . . . . . . . . . Triggered . | . . . . . . . . . . . . . . . Disarmed . | . . . . . . . . . . . . . . . Reprogrammed . | . . . . . . . . . . . . . . . Reused . | . . . . . . . . . . . . . . . Traps Extracted . | . . . . . . . . . . . . . . . Installed . | . . . . . . . . . . . . . . . Triggered 3 | . . . . . . . 2 . 1 . . . . . Machines | -11 -10 -10 -10 -9 -8 -8 -7 -7 -7 -7 -6 -6 -6 -6 ---------- Run | Yrd Mat Min Exi Min Mat Gar Fac Low Low Dat Pro Fac Was Fac Machines Disabled 2 | . . . . . . . 2 . . . . . . . Max in Single Turn 1 | . . . . . . . 1 . . . . . . . Garrison Access 3 | . . . . . . . 2 . . . . 1 . . Machines Repaired . | . . . . . . . . . . . . . . . Machines Dismantled . | . . . . . . . . . . . . . . . Machines Sabotaged . | . . . . . . . . . . . . . . . Overloaded Fab Kills . | . . . . . . . . . . . . . . . Hacking | -11 -10 -10 -10 -9 -8 -8 -7 -7 -7 -7 -6 -6 -6 -6 --------- Run | Yrd Mat Min Exi Min Mat Gar Fac Low Low Dat Pro Fac Was Fac Machines Accessed 60 | . 7 . 1 . 14 1 23 . . 1 . 1 . 12 Terminals 35 | . 5 . . . 9 1 11 . . . . . . 9 Fabricators 3 | . . . . . . . 2 . . . . . . 1 Repair Stations 5 | . . . . . 2 . 2 . . . . . . 1 Recycling Units 7 | . 2 . . . 1 . 4 . . . . . . . Scanalyzers 4 | . . . . . 1 . 2 . . . . . . 1 Garrison Access 4 | . . . . . 1 . 2 . . . . 1 . . Total Hacks 176 | . 29 . 1 . 44 1 56 . . 6 . 1 . 38 Successful 107 | . 14 . 1 . 24 1 30 . . 6 . 1 . 30 Failed 69 | . 15 . . . 20 . 26 . . . . . . 8 Catastrophic 8 | . 2 . . . 2 . 4 . . . . . . . Database Lockouts . | . . . . . . . . . . . . . . . Manual 71 | . 16 . . . 22 . 17 . . . . . . 16 Terminals 104 | . 22 . . . 27 1 31 . . . . . . 23 Fabricators 8 | . . . . . . . 4 . . . . . . 4 Repair Stations 14 | . . . . . 7 . 4 . . . . . . 3 Recycling Units 23 | . 7 . . . 5 . 11 . . . . . . . Scanalyzers 14 | . . . . . 4 . 2 . . . . . . 8 Garrison Access 6 | . . . . . 1 . 4 . . . . 1 . . Terminal Hacks 46 | . 10 . 1 . 10 1 14 . . 6 . . . 4 Record 7 | . . . 1 . . . . . . 6 . . . . Part Schematic 4 | . . . . . . . 4 . . . . . . . Robot Analysis 8 | . 5 . . . 3 . . . . . . . . . Prototype ID Bank 4 | . 1 . . . . . 2 . . . . . . 1 Open Door 1 | . . . . . . 1 . . . . . . . . Emergency Access Points 2 | . . . . . . . 1 . . . . . . 1 Terminal Index 1 | . . . . . . . 1 . . . . . . . Garrison Index 1 | . . . . . . . 1 . . . . . . . Alert Level 1 | . . . . . 1 . . . . . . . . . Unreport Threat 3 | . . . . . 3 . . . . . . . . . Locate Traps 6 | . 2 . . . 1 . 3 . . . . . . . Hauler Manifests 2 | . . . . . . . 1 . . . . . . 1 Zone Layout 6 | . 2 . . . 2 . 1 . . . . . . 1 Fabricator Hacks 4 | . . . . . . . 1 . . . . . . 3 Network Status 1 | . . . . . . . . . . . . . . 1 Load Schematic 2 | . . . . . . . 1 . . . . . . 1 Build 1 | . . . . . . . . . . . . . . 1 Repair Station Hacks 9 | . . . . . 3 . 3 . . . . . . 3 Scan Component 6 | . . . . . 2 . 2 . . . . . . 2 Repair 3 | . . . . . 1 . 1 . . . . . . 1 Recycling Unit Hacks 6 | . 2 . . . . . 4 . . . . . . . Retrieve Components 6 | . 2 . . . . . 4 . . . . . . . Scanalyzer 11 | . . . . . 3 . . . . . . . . 8 Insert Component 7 | . . . . . 2 . . . . . . . . 5 Analyze 4 | . . . . . 1 . . . . . . . . 3 Garrison Access Hacks 4 | . . . . . 1 . 2 . . . . 1 . . Unlock Access 1 | . . . . . 1 . . . . . . . . . Seal Access 3 | . . . . . . . 2 . . . . 1 . . Unauthorized Hacks 27 | . 2 . . . 7 . 6 . . . . . . 12 Terminals 20 | . . . . . 4 . 4 . . . . . . 12 Assimilate 2 | . . . . . . . 1 . . . . . . 1 Botnet 13 | . . . . . 3 . 2 . . . . . . 8 Disrupt 2 | . . . . . . . 1 . . . . . . 1 Operators 3 | . . . . . 1 . . . . . . . . 2 Fabricators . | . . . . . . . . . . . . . . . Repair Stations . | . . . . . . . . . . . . . . . Recycling Units 7 | . 2 . . . 3 . 2 . . . . . . . Reject 1 | . . . . . 1 . . . . . . . . . Recyclers 2 | . . . . . 1 . 1 . . . . . . . Mask 2 | . . . . . 1 . 1 . . . . . . . Tunnel 2 | . 2 . . . . . . . . . . . . . Scanalyzers . | . . . . . . . . . . . . . . . Garrison Access . | . . . . . . . . . . . . . . . Data Cores Recovered 1 | . . . . . . . 1 . . . . . . . Used 1 | . . . . . . . 1 . . . . . . . Hacking Detections 49 | . 5 . . . 12 . 21 . . . . . . 11 Full Trace Events 14 | . 4 . . . 3 . 6 . . . . . . 1 Feedback Events 1 | . . . . . . . 1 . . . . . . . Corruption 1 | . . . . . . . 1 . . . . . . . Feedback Blocked . | . . . . . . . . . . . . . . . Robot Schematics Acquired . | . . . . . . . . . . . . . . . Robots Built . | . . . . . . . . . . . . . . . Authchips . | . . . . . . . . . . . . . . . Time . | . . . . . . . . . . . . . . . Total Robot Build Rating . | . . . . . . . . . . . . . . . Part Schematics Acquired 8 | . . . . . 1 . 4 . . . . . . 3 Parts Built 1 | . . . . . . . . . . . . . . 1 Authchips . | . . . . . . . . . . . . . . . Time 68 | . . . . . . . . . . . . . . 68 Total Part Build Rating 8 | . . . . . . . . . . . . . . 8 Parts Repaired 3 | . . . . . 1 . 1 . . . . . . 1 Time 171 | . . . . . 136 . 16 . . . . . . 19 Parts Recycled . | . . . . . . . . . . . . . . . Recycled Matter . | . . . . . . . . . . . . . . . Retrieved Matter . | . . . . . . . . . . . . . . . Retrieved Components 23 | . 10 . . . . . 13 . . . . . . . Parts Scanalyzed 4 | . . . . . 1 . . . . . . . . 3 Part Schematics Acquired 4 | . . . . . 1 . . . . . . . . 3 Parts Damaged 2 | . . . . . 1 . . . . . . . . 1 Bothacking | -11 -10 -10 -10 -9 -8 -8 -7 -7 -7 -7 -6 -6 -6 -6 ------------ Run | Yrd Mat Min Exi Min Mat Gar Fac Low Low Dat Pro Fac Was Fac Used RIF Installer . | . . . . . . . . . . . . . . . Robots Hacked 4 | . . . . . 3 . . . . . . . . 1 Non-combat 4 | . . . . . 3 . . . . . . . . 1 Combat . | . . . . . . . . . . . . . . . Robot Hacks Applied 5 | . . . . . 4 . . . . . . . . 1 parse_system 2 | . . . . . 2 . . . . . . . . . no_distress 1 | . . . . . . . . . . . . . . 1 find_recycling 1 | . . . . . 1 . . . . . . . . . find_station 1 | . . . . . 1 . . . . . . . . . Relay Couplers Released . | . . . . . . . . . . . . . . . Fabnet Peak Effective % . | . . . . . . . . . . . . . . . Robots Rewired 2 | . . . . . . 2 . . . . . . . . Allies Hacked . | . . . . . . . . . . . . . . . Hacks Repelled . | . . . . . . . . . . . . . . . Allies | -11 -10 -10 -10 -9 -8 -8 -7 -7 -7 -7 -6 -6 -6 -6 -------- Run | Yrd Mat Min Exi Min Mat Gar Fac Low Low Dat Pro Fac Was Fac Total Allies 3 | . . . . . . 2 . . . . . . . 1 Largest Group 2 | . . . . . . 2 2 . . . . . . 1 Highest-Rated Group 70 | . . . . . . 70 70 . . . . . . 26 Highest-Rated Ally 39 | . . . . . . 39 39 . . . . . . 26 Total Orders . | . . . . . . . . . . . . . . . Ally Attacks 13 | . . . . . . 10 3 . . . . . . . Total Damage 252 | . . . . . . 211 41 . . . . . . . Kills 4 | . . . . . . 3 1 . . . . . . . Allies Corrupted . | . . . . . . . . . . . . . . . Allies Melted . | . . . . . . . . . . . . . . . Intel | -11 -10 -10 -10 -9 -8 -8 -7 -7 -7 -7 -6 -6 -6 -6 ------- Run | Yrd Mat Min Exi Min Mat Gar Fac Low Low Dat Pro Fac Was Fac Robot Analysis Total 142 | . 5 . . . 3 . . . . 134 . . . . Derelict Logs Recovered 3 | . . 2 . . . . . 1 . . . . . . Drone Launches . | . . . . . . . . . . . . . . . Drone Recoveries . | . . . . . . . . . . . . . . . Exploration | -11 -10 -10 -10 -9 -8 -8 -7 -7 -7 -7 -6 -6 -6 -6 ------------- Run | Yrd Mat Min Exi Min Mat Gar Fac Low Low Dat Pro Fac Was Fac Turns Passed 7914 | 161 1125 1284 261 58 2158 153 1350 273 182 30 122 13 49 695 Spaces Moved 9836 | 106 557 769 163 26 1971 240 3010 453 568 95 345 43 165 1325 Core 14 | 13 . . . . . . . . . . . . . 1 Treads 1989 | . 498 769 163 26 533 . . . . . . . . . Legs . | . . . . . . . . . . . . . . . Wheels 152 | 93 59 . . . . . . . . . . . . . Hover 3175 | . . . . . 1367 240 1568 . . . . . . . Flight 4506 | . . . . . 71 . 1442 453 568 95 345 43 165 1324 Fastest Speed 23 | 50 95 160 160 160 34 38 23 23 23 23 24 24 24 23 Average Speed 57 | 89 153 160 160 160 72 38 30 28 23 23 29 24 24 25 Slowest Speed 550 | 95 160 160 160 160 210 38 360 88 23 24 90 24 24 550 Overloaded Moves . | . . . . . . . . . . . . . . . Propulsion Burnouts . | . . . . . . . . . . . . . . . Robots Hopped 7 | . . . . . . . 2 . . . . . . 5 Cave-ins Triggered 1 | . . 1 . . . . . . . . . . . . Exploration Rate (%) 54 | 6 90 99 53 12 96 36 56 58 66 75 61 1 83 32 Regions Visited 14 Branch Regions 7 Pre-discovered Areas 27 | . 2 . 1 1 . . . . . 23 . . . . Known Exits Taken 9 | . . 1 1 1 1 . 1 1 1 1 1 . . . Unknown Exits Taken 2 | 1 1 . . . . . . . . . . . . . Scrap Searched 19 | . . 2 . . . . . . 15 . 2 . . . Spaces Dug 68 | . . . . . 4 . 21 4 . . 31 . . 8 Terrain Destroyed 222 | . . 19 . . 34 . 25 4 . . 61 . . 79 Melee 32 | . . . . . 4 . 20 1 . . 1 . . 6 Projectile 15 | . . . . . 1 . 5 3 . . . . . 6 AOE 175 | . . 19 . . 29 . . . . . 60 . . 67 Terrain Rammed . | . . . . . . . . . . . . . . . Walls Destroyed . | . . . . . . . . . . . . . . . Machines Disabled . | . . . . . . . . . . . . . . . Actions | -11 -10 -10 -10 -9 -8 -8 -7 -7 -7 -7 -6 -6 -6 -6 --------- Run | Yrd Mat Min Exi Min Mat Gar Fac Low Low Dat Pro Fac Was Fac Total 11289 | 140 695 800 164 31 2396 286 3295 587 615 102 360 45 173 1600 Wait 495 | . 25 6 . . 90 20 94 125 46 . . . 9 80 Move 9810 | 105 556 768 162 25 1970 239 3005 452 567 94 344 43 164 1316 Hop 6 | . . . . . . . 2 . . . . . . 4 Pick Up 108 | 12 15 3 . . 43 . 22 . . 2 1 . . 10 Fast Attach 34 | 1 . 1 . . 12 1 18 . . . . . . 1 Attach 87 | 6 . . . . 27 . 6 1 . 2 4 . . 41 Detach 53 | . . 1 . . 10 . 7 1 . 1 4 . . 29 Swap 81 | . 12 6 1 . 24 4 13 2 . . . 1 . 18 Drop 92 | . 15 4 1 . 34 . 32 . . 2 . 1 . 3 Fire 324 | 16 72 11 . 6 141 5 26 5 . . 6 . . 36 Melee 148 | . . . . . 45 4 70 1 2 1 1 . . 24 Ram . | . . . . . . . . . . . . . . . Kick . | . . . . . . . . . . . . . . . Crush . | . . . . . . . . . . . . . . . Escape Stasis 51 | . . . . . . 13 . . . . . . . 38 Rewire . | . . . . . . . . . . . . . . . Trap . | . . . . . . . . . . . . . . . Miscellaneous . | . . . . . . . . . . . . . . . Route ------- -11/Scrapyard -10/Materials (discovered 5 exits: *Mat x3 / [*Min] / *Sub) -10/Mines (discovered 4 exits: *Mat x2 / *Exi / *Sub) -10/Exiles (discovered 2 exits: *Min x2) -9/Mines -8/Materials (discovered 4 exits: *Fac x3 / Gar) -8/Garrison -7/Factory (discovered 3 exits: *Fac / *Low x2) -7/Lower Caves -7/Lower Caves (discovered 2 exits: *Fac / *Dat) -7/Data Miner -6/Proximity Caves -6/Factory -6/Waste -6/Factory (discovered 2 exits: *Fac / *Ext) History --------- Turn | Location | Event 10 | -11/Scrapyard | Discovered new exit (range 16) 162 | -11/Scrapyard | Entered Materials 315 | -10/Materials | Build established: Mutant 533 | -10/Materials | Discovered new exit (range 15) 870 | -10/Materials | Discovered new exit (range 7) 874 | -10/Materials | Build established: Scavenger-Mutant 1063 | -10/Materials | Discovered new exit (range 7) 1189 | -10/Materials | Discovered new exit (range 7) 1223 | -10/Materials | Discovered new exit (range 15) 1287 | -10/Materials | Entered Mines 1374 | -10/Mines | Found a damaged Exp. Sensor Array with a note attached 1378 | -10/Mines | Found Prototype Device 1379 | -10/Mines | Identified Exp. Sensor Array 1406 | -10/Mines | A weapon hastily lodged in a ceiling crevice suddenly fell to the ground 1488 | -10/Mines | Assembled infested the area 1510 | -10/Mines | Core integrity fell below 50% 1528 | -10/Mines | Met 8R-AWN 1573 | -10/Mines | Crushed by falling debris 1733 | -10/Mines | Discovered new exit (range 7) 1740 | -10/Mines | Core integrity fell below 20% 1800 | -10/Mines | Discovered new exit (range 6) 1838 | -10/Mines | Build established: Mutant 1874 | -10/Mines | Discovered new exit (range 13) 1982 | -10/Mines | Identified exit to Materials 2062 | -10/Mines | Identified exit to Subcaves 2244 | -10/Mines | Learned Materials emergency access door positions 2564 | -10/Mines | Discovered new exit (range 5) 2569 | -10/Mines | Identified exit to Exiles 2571 | -10/Mines | Entered Exiles 2572 | -10/Exiles | Identified exit to Mines 2610 | -10/Exiles | Welcomed by 8R-AWN 2635 | -10/Exiles | Met EX-HEX 2687 | -10/Exiles | Met EX-BIN 2714 | -10/Exiles | Met EX-DEC 2733 | -10/Exiles | Learned location of Zion (-6) 2832 | -10/Exiles | Entered Mines 2833 | -9/Mines | Learned location of Storage (-7) 2873 | -9/Mines | Discovered new exit (range 11) 2887 | -9/Mines | Identified exit to Materials 2890 | -9/Mines | Entered Materials 2890 | -8/Materials | Evolved 4 slots: Propulsion x2, Utility x2 3197 | -8/Materials | Build established: Scavenger-Mutant 3423 | -8/Materials | Discovered new exit (range 16) 3801 | -8/Materials | Garrison activated, responded to threat 4118 | -8/Materials | Lost 8 parts (1p4n1u2w) 4229 | -8/Materials | Discovered new exit (range 20) 4331 | -8/Materials | Core integrity fell below 50% 4357 | -8/Materials | Build established: Mutant 4490 | -8/Materials | First assault squad dispatched 4742 | -8/Materials | Repaired Broken Exp. Sensor Array? 4820 | -8/Materials | Discovered new exit (range 11) 5020 | -8/Materials | Identified exit to Garrison 5048 | -8/Materials | Entered Garrison 5085 | -8/Garrison | Build established: Hacker-Mutant 5096 | -8/Garrison | Triggered checkpoint 5100 | -8/Garrison | Triggered checkpoint 5134 | -8/Garrison | Discovered new exit (range 10) 5142 | -8/Garrison | Core integrity fell below 20% 5166 | -8/Garrison | Triggered checkpoint 5201 | -8/Garrison | Entered Factory 5201 | -7/Factory | Accompanied by 2 allies 5201 | -7/Factory | Evolved 2 slots: Propulsion x1, Utility x1 5291 | -7/Factory | Discovered new exit (range 15) 5301 | -7/Factory | Identified exit to Lower Caves 5302 | -7/Factory | Discovered exit to Lower Caves (range 16) 5663 | -7/Factory | Repaired Imp. Hover Unit 5746 | -7/Factory | Discovered new exit (range 8) 5748 | -7/Factory | Identified exit to Factory 6126 | -7/Factory | Cargo convoy interrupted 6363 | -7/Factory | Build established: Hacker-Sprinter 6427 | -7/Factory | Search patrols dispatched 6551 | -7/Factory | Entered Lower Caves 6589 | -7/Lower Caves | Learned Factory machine intel 6823 | -7/Lower Caves | Discovered new exit (range 7) 6824 | -7/Lower Caves | Identified exit to Lower Caves 6824 | -7/Lower Caves | Entered another Lower Caves area 6864 | -7/Lower Caves | Discovered exit to Factory (range 3) 6962 | -7/Lower Caves | Discovered new exit (range 15) 6966 | -7/Lower Caves | Identified exit to Data Miner 7006 | -7/Lower Caves | Entered Data Miner 7006 | -7/Data Miner | Discovered new exit (range 6) 7008 | -7/Data Miner | Identified exit to Proximity Caves 7011 | -7/Data Miner | Met Data Miner 7015 | -7/Data Miner | Learned location of Section 7 (-3) 7015 | -7/Data Miner | Acquired the access code to Warlord's prototype stash 7017 | -7/Data Miner | Received God Mode back door access code from Data Miner 7021 | -7/Data Miner | Destroyed Data Miner 7023 | -7/Data Miner | Interfaced with the Data Conduit 7024 | -7/Data Miner | Found Prototype Hackware 7026 | -7/Data Miner | Found Prototype Hackware 7036 | -7/Data Miner | Entered Proximity Caves 7155 | -6/Proximity Caves | Discovered exit to Factory (range 14) 7158 | -6/Proximity Caves | Entered Factory 7158 | -6/Factory | Evolved 2 slots: Utility x2 7159 | -6/Factory | Loaded intel: 282 machine locations 7171 | -6/Factory | Sucked down chute 7171 | -6/Factory | Entered Waste 7180 | -6/Waste | Spotted C-40 Crusher 7186 | -6/Waste | Spotted C-40 Crusher 7186 | -6/Waste | Spotted C-40 Crusher 7187 | -6/Waste | Spotted C-40 Crusher 7188 | -6/Waste | Spotted C-40 Crusher 7192 | -6/Waste | Spotted C-40 Crusher 7216 | -6/Waste | Discovered new exit (range 16) 7220 | -6/Waste | Identified exit to Factory 7220 | -6/Waste | Entered Factory 7221 | -6/Factory | Loaded intel: 317 machine locations 7341 | -6/Factory | Identified System Mapper 7341 | -6/Factory | Identified Deep Network Scanner 7372 | -6/Factory | Repaired Imp. Light Armor Plating 7375 | -6/Factory | Discovered new exit (range 8) 7377 | -6/Factory | Identified exit to Factory 7397 | -6/Factory | Discovered new exit (range 12) 7399 | -6/Factory | Identified exit to Extension 7463 | -6/Factory | Fabricated Exp. Sensor Array? 7799 | -6/Factory | Garrison activated, responded to threat 7842 | -6/Factory | Intercept squad dispatched 7850 | -6/Factory | Destroyed 7 combat bots 7864 | -6/Factory | Spotted Tracker 7877 | -6/Factory | Core integrity fell below 50% 7882 | -6/Factory | Found Prototype Energy Gun 7883 | -6/Factory | Identified Immobilizer 7905 | -6/Factory | Core integrity fell below 20% 7906 | -6/Factory | Spotted Combat Programmer 7915 | -6/Factory | Destroyed by Combat Programmer with EMDS Last Messages --------------- 07877_ Imp. Flight Unit destroyed. 07882_ Acquired Prototype Energy Gun. 07883_ Identified Immobilizer. 07886_ 0H6VG8RYXGWQEOBWGO>KTVNP 07887_ Ripper destroyed. 07887_ Imp. Light Armor Plating destroyed. 07891_ Destroyed Exp. Phase Shifter. 07891_ Tracker knocked back. 07894_ Imp. Cesium-ion Thruster destroyed. 07894_ Imp. Light Armor Plating destroyed. 07898_ Imp. Cesium-ion Thruster destroyed. 07906_ Penetrated by EMDS Slug. 07908_ Combat Programmer resets Y-54 Guardian, system corruption cleaned. 07910_ Cld. Particle Cannon destroyed. 07911_ Imp. Flight Unit destroyed. 07913_ Penetrated by EMDS Slug. 07913_ U-05 Engineer destroyed. 07914_ Tracker knocked back. 07915_ Penetrated by EMDS Slug. Map ----- +----------------------------------------------------+ | #????????# # # #????# """"""""" + | | ########## # # #????# ## | | + # #????# """"""""" #? | | ########## # # #????# #? | | ##????????# # ! # #????# """"""""" #? | | ??????????# # # #????# #? | | ??????????####### " " " # #????# #? | | ????????????????# " " " # ############+####### | | ????????????????# " " " # | | ????????????????# " " " # | | ????????????????# " " " # "" | | ????????????????# " " " # "" | | ????????????????# " " " # "" | | ????????????????# " " " ###########/########## | | ????????????????# " " " #????#! #??# "" | | ????????????????# #????# ! #??# "" | | ????????????????# #????# #### "" | | ???????##############"###????# + | | ???????# #??????# """ """ ## "" | | ???????# #??????# """ """ ## "" | | ???????# """"""""" #??????# """ """ ## "" | | ???????# #??????# "" "" ## | | ???????# """"""""" #??????# "" "" ## "" | | ???????# #?###??#] ## "" | | ???????########+#########=#### p ## "" | | ?????????????# t %Y%@!% s t ## | | ?????????????# Y########################### "" | | ?????????????# #??# !! T ##### "" | | ?????????????# #?## !! + "" | | ?????????????# #?# ! ##### ! | | ?????????????# #?## #???# "" | | ?????????????# #??# """"""""" [#???# "" | | ?????????????# #??# #???# "" | | ####?????????# #??# """"""""" #???# | | #?###????## #??# #???# "" | | ##T #??###[ ############+############# "" | | ? "" | | ?? | | ??? | | #??????### ##### ################### | | #???????####+#####?# #???????# | | #????????# #?# ######### | | ########## ### + "" "" | | + + ######?""??""??? | | ########## ####+##### #??????"""?"""?? | | #????????# " # #??????"""?"""?? | | #????????# # """ + #??????"""?"""?? | | #????????# # """ # #??????????????? | | ###????????# # """ # #??????????????? | | ???????????# # # #??????????????? | +----------------------------------------------------+ Best States ------------- Heat Dissipation 37 Energy Generation 15 Energy Capacity 280 Matter Stores 300 Matter Capacity 300 Sight Range 22 Robot Scan Range 20 Terrain Scan Density 10 ECM Strength 1 Armor Coverage 225 Evasion (%) 65 Targeting Accuracy 12 Recoil Reduction 4 Offensive Hacking 30 Defensive Hacking 10 Item Schematics ----------------- Exp. Sensor Array | -8/Materials | Scanalyzed Gravmag System | -7/Factory | Hacked ECM Suite | -7/Factory | Hacked Cld. Nuclear Pulse Thruster | -7/Factory | Hacked Lyr. Heavy Armor Plating | -7/Factory | Hacked Imp. Light Armor Plating | -6/Factory | Scanalyzed Imp. Flight Unit | -6/Factory | Scanalyzed Mic. Nuclear Core | -6/Factory | Scanalyzed Robot Schematics ------------------ None Fabricated ------------ Exp. Sensor Array | x1 | -6/Factory Alien Tech Used ----------------- None Achievements -------------- Unlimited Data Challenges ------------ None Game ------ Seed CorruptionSignalAxe Manual? 0 Play Time 02:36:52 Cumulative 140.8 hours Start 2024.06.05 @ 03:40:37 End 2024.06.06 @ 12:35:27 Sessions 7 Manual Loads 0 Difficulty Rogue Special Mode None Game No. 117 Rogue 112 Adventurer 5 Explorer 0 Win Type - Total 3 Types 2/0/1/0/0/0/0/0/0 Lore% 62 Gallery% 72 Achievement% 52 Wizard Run 0 Options --------- Layout 2 ASCII 0 Keyboard 0 Movement Mouse Keybinds 0 Fullscreen 2 Font 24/Smallcaps Map View 50x44 Zoom Use 0% Tactical HUD 1 Map Filters NONE Filters NONE Steam 1 RUN: 78722653-349f-4fc4-9cd1-35a6716cf032